{"text_format":"1","workbook":"xlsx","n_sheets":3,"sheets":["ورقة1","ورقة2","ورقة3"],"not_rendered":{"charts":0,"images":2,"macros":1,"external_links":0,"defined_names":0,"comments":0,"pivot_tables":0},"unopened":[],"bounds":{"document_bytes":16777216,"sheet_cells":100000,"rows_first":2000,"rows_last":500,"rows_between":2000,"halvings":0,"cell_chars":16384,"cell_head_chars":4096},"cells_cut":0,"cells_raw":0,"read":"whole","date_system":"1900"}

{"sheet":"ورقة1","index":0,"n_rows":35,"n_cols":27,"rows_kept":35,"cut":false,"hidden":false,"merged":[]}
[]
[null,null,null,null,null,null,null,null,null,null,null,null,null,null,null,null,null,null,null,null,null,null,null,null,null,null,"امر تسليم "]
["اسم الشركة :",null,null,null,null,null,null,null,null,null,null,null,null,null,null,null,null,null,null,null,null,null,null,null,null,null,"مناولة "]
[null,null,null,null,"التاريخ :",null,null,null,null,null,null,null,null,null,null,null,null,null,null,null,null,null,null,null,null,null,"ايجار سيارات "]
["العنوان:",null,null,null,{"$f":"TODAY()","v":"2019-06-19"},null,null,null,null,null,null,null,null,null,null,null,null,null,null,null,null,null,null,null,null,null,"غرامات تاخير "]
[null,null,null,null,"رقم امر التسليم :",null,null,null,null,null,null,null,null,null,null,null,null,null,null,null,null,null,null,null,null,null,"عمال تفريغ "]
[null,null,null,null,"A238",null,null,null,null,null,null,null,null,null,null,null,null,null,null,null,null,null,null,null,null,null,"البيئة "]
[null,null,null,null,"قيمة العهدة",null,null,null,null,null,null,null,null,null,null,null,null,null,null,null,null,null,null,null,null,null,"الهيئة على الرقابة "]
[null,null,null,null,3000,null,null,null,null,null,null,null,null,null,null,null,null,null,null,null,null,null,null,null,null,null,"كرشم "]
[null,null,null,null,null,null,null,null,null,null,null,null,null,null,null,null,null,null,null,null,null,null,null,null,null,null,"تفتيش جمركي "]
["الشركة البائعة",null,null,null,"وكالة الشحن",null,null,null,null,null,null,null,null,null,null,null,null,null,null,null,null,null,null,null,null,null,"تعبئة اقرار "]
[null,null,null,null,null,null,null,null,null,null,null,null,null,null,null,null,null,null,null,null,null,null,null,null,null,null,"جمرك"]
[null,null,null,null,null,null,null,null,null,null,null,null,null,null,null,null,null,null,null,null,null,null,null,null,null,null,"عمولة ايذاع صك الجمرك"]
[null,null,null,null,null,null,null,null,null,null,null,null,null,null,null,null,null,null,null,null,null,null,null,null,null,null,"دفعة مقدمة "]
[]
[]
[]
["ر.م","البيان","عدد ونوع الحاويات","قيمة المصروف","باقي قيمة العهدة"]
[1,"امر تسليم ","2×20",150,{"$f":"E9-D19","v":2850}]
[2,"مناولة ","1×20",300,{"$f":"E19-D20","v":2550}]
[3,"ايجار سيارات ","2×20",1500,{"$f":"E20-D21","v":1050}]
[null,null,null,null,1050]
[null,null,null,null,1050]
[null,null,null,null,1050]
[null,null,null,null,1050]
[null,null,null,null,{"$f":"E25-D26","v":1050}]
[null,null,null,null,1050]
[null,null,null,null,1050]
[null,null,null,null,3000]
[null,null,null,null,3000]
[null,null,null,null,3000]
[null,null,null,null,3000]
[null,null,null,"SUBTOTAL",{"$f":"E32","v":3000}]
[null,null,null,"SHIPPING/HANDLING"]
[null,null,null,"TOTAL",{"$f":"E33+E34","v":3000}]

{"sheet":"ورقة2","index":1,"n_rows":27,"n_cols":5,"rows_kept":27,"cut":false,"hidden":false,"merged":[]}
[]
["اسم الشركة :"]
["العنوان:",null,null,null,{"$f":"TODAY()","v":"2019-06-19"}]
["الشركة البائعة",null,null,null,"وكالة الشحن"]
["ر.م","البيان","عدد ونوع الحاويات","قيمة المصروف","باقي قيمة العهدة"]
["اسم الشركة :"]
["العنوان:",null,null,null,{"$f":"TODAY()","v":"2019-06-19"}]
["الشركة البائعة",null,null,null,"وكالة الشحن"]
["ر.م","البيان","عدد ونوع الحاويات","قيمة المصروف","باقي قيمة العهدة"]
[1,"امر تسليم ","2*20",1480,{"$f":"E9-D10","v":{"$error":"#VALUE!"}}]
["اسم الشركة :"]
["العنوان:",null,null,null,{"$f":"TODAY()","v":"2019-06-19"}]
["الشركة البائعة",null,null,null,"وكالة الشحن"]
["ر.م","البيان","عدد ونوع الحاويات","قيمة المصروف","باقي قيمة العهدة"]
[1,"امر تسليم ","2*20",1480,{"$f":"E14-D15","v":{"$error":"#VALUE!"}}]
["اسم الشركة :"]
["العنوان:",null,null,null,{"$f":"TODAY()","v":"2019-06-19"}]
["الشركة البائعة",null,null,null,"وكالة الشحن"]
["ر.م","البيان","عدد ونوع الحاويات","قيمة المصروف","باقي قيمة العهدة"]
[1,"امر تسليم ","2*20",1480,{"$f":"E19-D20","v":{"$error":"#VALUE!"}}]
["اسم الشركة :"]
["العنوان:",null,null,null,{"$f":"TODAY()","v":"2019-06-19"}]
["الشركة البائعة",null,null,null,"وكالة الشحن"]
["ر.م","البيان","عدد ونوع الحاويات","قيمة المصروف","باقي قيمة العهدة"]
[1,"امر تسليم ","2×20",150,{"$f":"E15-D25","v":{"$error":"#VALUE!"}}]
[2,"مناولة ","1×20",300,{"$f":"E25-D26","v":{"$error":"#VALUE!"}}]
[3,"ايجار سيارات ","2×20",1500,{"$f":"E26-D27","v":{"$error":"#VALUE!"}}]

{"sheet":"ورقة3","index":2,"n_rows":0,"n_cols":0,"rows_kept":0,"cut":false,"hidden":false,"merged":[]}